[Event "The Kvibergspelen 2023"]
[Site "Kviberg Park Hotel & Conference, Krutvagen 2, Gothenburg, Sweden"]
[Date "2023.09.15"]
[Round "3.5"]
[White "Ljung, Harald"]
[Black "Sivuk, Vitaly"]
[Result "0-1"]
[TimeControl "15 minutes + 5 seconds per move from move one (Round 1 - 4) / 90 minutes + 30 seconds per move from move one (Round 5 - 8)"]
[BlackTitle "GM"]
[WhiteFideId "1738178"]
[BlackFideId "14116502"]
[WhiteElo "2164"]
[BlackElo "2461"]

1. d4 {[%clk 00:15:08]} {[%emt 00:00:01]} Nf6 {[%clk 00:15:08]} {[%emt
00:00:03]} 2. Nf3 {[%clk 00:15:12]} {[%emt 00:00:01]} g6 {[%clk 00:15:11]}
{[%emt 00:00:02]} 3. g3 {[%clk 00:15:14]} {[%emt 00:00:02]} b6 {[%clk
00:15:13]} {[%emt 00:00:02]} 4. Bg2 {[%clk 00:15:18]} {[%emt 00:00:02]} Bb7
{[%clk 00:15:16]} {[%emt 00:00:01]} 5. O-O {[%clk 00:15:20]} {[%emt 00:00:03]}
c5 {[%clk 00:15:20]} {[%emt 00:00:02]} 6. c3 {[%clk 00:15:01]} {[%emt
00:00:24]} Bg7 {[%clk 00:15:22]} {[%emt 00:00:02]} 7. Re1 {[%clk 00:14:58]}
{[%emt 00:00:09]} O-O {[%clk 00:15:22]} {[%emt 00:00:05]} 8. Nbd2 {[%clk
00:14:53]} {[%emt 00:00:10]} cxd4 {[%clk 00:13:14]} {[%emt 00:02:13]} 9. cxd4
{[%clk 00:14:37]} {[%emt 00:00:22]} Nc6 {[%clk 00:13:13]} {[%emt 00:00:05]} 10.
Nc4 {[%clk 00:14:05]} {[%emt 00:00:38]} Rc8 {[%clk 00:12:53]} {[%emt 00:00:23]}
11. a3 {[%clk 00:10:58]} {[%emt 00:03:12]} Ne4 {[%clk 00:11:58]} {[%emt
00:01:00]} 12. Nfe5 {[%clk 00:10:15]} {[%emt 00:00:49]} Nxe5 {[%clk 00:11:30]}
{[%emt 00:00:33]} 13. Nxe5 {[%clk 00:10:17]} {[%emt 00:00:03]} d6 {[%clk
00:11:28]} {[%emt 00:00:06]} 14. Nf3 {[%clk 00:10:06]} {[%emt 00:00:16]} Qc7
{[%clk 00:11:21]} {[%emt 00:00:12]} 15. Bh3 {[%clk 00:08:41]} {[%emt 00:01:31]}
e6 {[%clk 00:11:05]} {[%emt 00:00:21]} 16. Bf4 {[%clk 00:08:38]} {[%emt
00:00:09]} Qc2 {[%clk 00:10:45]} {[%emt 00:00:23]} 17. Rb1 {[%clk 00:07:41]}
{[%emt 00:01:03]} Bd5 {[%clk 00:10:42]} {[%emt 00:00:07]} 18. Qd3 {[%clk
00:07:20]} {[%emt 00:00:27]} Qxd3 {[%clk 00:09:58]} {[%emt 00:00:49]} 19. exd3
{[%clk 00:07:24]} {[%emt 00:00:02]} Nxg3 {[%clk 00:09:44]} {[%emt 00:00:18]} 20.
hxg3 {[%clk 00:06:43]} {[%emt 00:00:46]} Bxf3 {[%clk 00:09:47]} {[%emt
00:00:02]} 21. Bxd6 {[%clk 00:06:47]} {[%emt 00:00:03]} Rfd8 {[%clk 00:09:50]}
22. Be5 {[%clk 00:06:43]} {[%emt 00:00:09]} Bxe5 {[%clk 00:09:53]} {[%emt
00:00:02]} 23. Rxe5 {[%clk 00:06:45]} {[%emt 00:00:04]} Rc2 {[%clk 00:09:13]}
{[%emt 00:00:43]} 24. Re3 {[%clk 00:06:09]} {[%emt 00:00:40]} Bb7 {[%clk
00:08:55]} {[%emt 00:00:24]} 25. Bf1 {[%clk 00:03:34]} {[%emt 00:02:41]} Rxd4
{[%clk 00:08:56]} {[%emt 00:00:04]} 26. Re2 {[%clk 00:03:25]} {[%emt 00:00:14]}
Rc7 {[%clk 00:08:52]} {[%emt 00:00:08]} 27. Ree1 {[%clk 00:02:43]} {[%emt
00:00:47]} Ba6 {[%clk 00:08:47]} {[%emt 00:00:10]} 28. Rbc1 {[%clk 00:02:41]}
{[%emt 00:00:08]} Rcd7 {[%clk 00:08:50]} {[%emt 00:00:02]} 29. Red1 {[%clk
00:02:07]} {[%emt 00:00:39]} Bxd3 {[%clk 00:08:34]} {[%emt 00:00:20]} 30. Bxd3
{[%clk 00:02:11]} {[%emt 00:00:02]} Rxd3 {[%clk 00:08:38]} {[%emt 00:00:01]} 31.
Rxd3 {[%clk 00:02:15]} {[%emt 00:00:02]} Rxd3 {[%clk 00:08:41]} {[%emt
00:00:01]} 32. Rc7 {[%clk 00:02:18]} {[%emt 00:00:02]} a5 {[%clk 00:08:41]}
{[%emt 00:00:05]} 33. Kg2 {[%clk 00:01:42]} {[%emt 00:00:35]} 0-1

[Event "The Kvibergspelen 2023"]
[Site "Kviberg Park Hotel & Conference, Krutvagen 2, Gothenburg, Sweden"]
[Date "2023.09.15"]
[Round "3.6"]
[White "Golubka, Petro"]
[Black "Nordenbaek, Jan"]
[Result "1-0"]
[TimeControl "15 minutes + 5 seconds per move from move one (Round 1 - 4) / 90 minutes + 30 seconds per move from move one (Round 5 - 8)"]
[WhiteTitle "GM"]
[WhiteFideId "14114224"]
[BlackFideId "1401475"]
[WhiteElo "2439"]
[BlackElo "2163"]

1. e4 {[%clk 00:11:38]} {[%emt 00:03:32]} e5 {[%clk 00:15:05]} {[%emt
00:00:05]} 2. Nf3 {[%clk 00:11:40]} {[%emt 00:00:04]} Nc6 {[%clk 00:15:09]} 3.
d4 {[%clk 00:11:42]} {[%emt 00:00:03]} exd4 {[%clk 00:15:12]} {[%emt 00:00:02]}
4. Nxd4 {[%clk 00:11:43]} {[%emt 00:00:02]} Bb4+ {[%clk 00:13:51]} {[%emt
00:01:26]} 5. c3 {[%clk 00:11:42]} {[%emt 00:00:06]} Bc5 {[%clk 00:13:56]} 6.
Be3 {[%clk 00:11:26]} {[%emt 00:00:22]} Bb6 {[%clk 00:13:44]} {[%emt 00:00:17]}
7. Na3 {[%clk 00:11:02]} {[%emt 00:00:29]} d6 {[%clk 00:12:52]} {[%emt
00:00:57]} 8. Nc4 {[%clk 00:10:43]} {[%emt 00:00:25]} Nf6 {[%clk 00:12:20]}
{[%emt 00:00:36]} 9. Nxc6 {[%clk 00:10:16]} {[%emt 00:00:32]} bxc6 {[%clk
00:12:24]} {[%emt 00:00:02]} 10. e5 {[%clk 00:10:16]} {[%emt 00:00:05]} Nd5
{[%clk 00:11:49]} {[%emt 00:00:40]} 11. exd6 {[%clk 00:10:13]} {[%emt
00:00:07]} cxd6 {[%clk 00:11:38]} {[%emt 00:00:16]} 12. Nxb6 {[%clk 00:10:03]}
{[%emt 00:00:15]} axb6 {[%clk 00:11:38]} {[%emt 00:00:05]} 13. Bd2 {[%clk
00:09:58]} {[%emt 00:00:11]} O-O {[%clk 00:11:27]} {[%emt 00:00:16]} 14. c4
{[%clk 00:09:39]} {[%emt 00:00:23]} Re8+ {[%clk 00:10:51]} {[%emt 00:00:41]} 15.
Be2 {[%clk 00:09:35]} {[%emt 00:00:07]} Qe7 {[%clk 00:10:39]} {[%emt 00:00:20]}
16. cxd5 {[%clk 00:09:08]} {[%emt 00:00:32]} 1-0

[Event "The Kvibergspelen 2023"]
[Site "Kviberg Park Hotel & Conference, Krutvagen 2, Gothenburg, Sweden"]
[Date "2023.09.15"]
[Round "3.7"]
[White "Ollen, Martin"]
[Black "Akesson, Ralf"]
[Result "1/2-1/2"]
[TimeControl "15 minutes + 5 seconds per move from move one (Round 1 - 4) / 90 minutes + 30 seconds per move from move one (Round 5 - 8)"]
[BlackTitle "GM"]
[WhiteFideId "1718983"]
[BlackFideId "1700120"]
[WhiteElo "2143"]
[BlackElo "2410"]

1. e4 {[%clk 00:15:07]} {[%emt 00:00:02]} c6 {[%clk 00:15:05]} {[%emt
00:00:05]} 2. d4 {[%clk 00:15:10]} {[%emt 00:00:03]} d5 {[%clk 00:15:08]}
{[%emt 00:00:02]} 3. e5 {[%clk 00:15:13]} {[%emt 00:00:02]} Bf5 {[%clk
00:15:10]} {[%emt 00:00:02]} 4. c3 {[%clk 00:15:13]} {[%emt 00:00:05]} e6
{[%clk 00:15:12]} {[%emt 00:00:04]} 5. Nf3 {[%clk 00:15:16]} {[%emt 00:00:02]}
Nd7 {[%clk 00:15:05]} {[%emt 00:00:11]} 6. Be2 {[%clk 00:15:19]} {[%emt
00:00:03]} h6 {[%clk 00:15:00]} {[%emt 00:00:09]} 7. O-O {[%clk 00:15:20]}
{[%emt 00:00:04]} Ne7 {[%clk 00:15:02]} {[%emt 00:00:04]} 8. a4 {[%clk
00:14:54]} {[%emt 00:00:31]} Qc7 {[%clk 00:14:43]} {[%emt 00:00:23]} 9. a5
{[%clk 00:14:47]} {[%emt 00:00:12]} g5 {[%clk 00:14:41]} {[%emt 00:00:08]} 10.
b4 {[%clk 00:14:20]} {[%emt 00:00:32]} Bg7 {[%clk 00:14:41]} {[%emt 00:00:04]}
11. Na3 {[%clk 00:12:51]} {[%emt 00:01:35]} O-O {[%clk 00:14:37]} {[%emt
00:00:08]} 12. Nc2 {[%clk 00:12:52]} {[%emt 00:00:04]} f6 {[%clk 00:14:22]}
{[%emt 00:00:20]} 13. exf6 {[%clk 00:12:32]} {[%emt 00:00:26]} Nxf6 {[%clk
00:13:19]} {[%emt 00:01:08]} 14. Ne3 {[%clk 00:12:16]} {[%emt 00:00:21]} Bh7
{[%clk 00:13:17]} {[%emt 00:00:06]} 15. Bd3 {[%clk 00:11:15]} {[%emt 00:01:06]}
Ne4 {[%clk 00:12:03]} {[%emt 00:01:20]} 16. Qc2 {[%clk 00:11:05]} {[%emt
00:00:14]} Kh8 {[%clk 00:11:42]} {[%emt 00:00:26]} 17. Ra2 {[%clk 00:05:58]}
{[%emt 00:05:13]} Rf4 {[%clk 00:10:39]} {[%emt 00:01:07]} 18. Nd2 {[%clk
00:04:33]} {[%emt 00:01:31]} Nxd2 {[%clk 00:09:43]} {[%emt 00:01:01]} 19. Bxd2
{[%clk 00:04:31]} {[%emt 00:00:07]} Bxd3 {[%clk 00:09:38]} {[%emt 00:00:10]} 20.
Qxd3 {[%clk 00:04:32]} {[%emt 00:00:03]} e5 {[%clk 00:09:35]} {[%emt 00:00:08]}
21. dxe5 {[%clk 00:03:41]} {[%emt 00:00:56]} Bxe5 {[%clk 00:09:25]} {[%emt
00:00:15]} 22. h3 {[%clk 00:03:22]} {[%emt 00:00:24]} Rf7 {[%clk 00:07:27]}
{[%emt 00:02:03]} 23. Ng4 {[%clk 00:03:22]} {[%emt 00:00:06]} Bg7 {[%clk
00:07:29]} {[%emt 00:00:02]} 24. c4 {[%clk 00:01:59]} {[%emt 00:01:29]} Rd8
{[%clk 00:06:18]} {[%emt 00:01:15]} 25. Bc1 {[%clk 00:01:15]} {[%emt 00:00:50]}
Qd6 {[%clk 00:04:49]} {[%emt 00:01:32]} 26. b5 {[%clk 00:01:00]} {[%emt
00:00:22]} dxc4 {[%clk 00:03:51]} {[%emt 00:01:03]} 27. Qxc4 {[%clk 00:01:03]}
{[%emt 00:00:02]} Qd5 {[%clk 00:03:37]} {[%emt 00:00:19]} 28. Qxd5 {[%clk
00:00:33]} {[%emt 00:00:35]} Rxd5 {[%clk 00:03:15]} {[%emt 00:00:27]} 29. bxc6
{[%clk 00:00:32]} {[%emt 00:00:06]} Nxc6 {[%clk 00:03:18]} {[%emt 00:00:01]} 30.
a6 {[%clk 00:00:34]} {[%emt 00:00:03]} b5 {[%clk 00:03:00]} {[%emt 00:00:23]}
31. Bb2 {[%clk 00:00:26]} {[%emt 00:00:14]} Nd4 {[%clk 00:02:33]} {[%emt
00:00:32]} 32. Ne3 {[%clk 00:00:29]} {[%emt 00:00:02]} Rc5 {[%clk 00:02:36]}
{[%emt 00:00:01]} 33. Ba1 {[%clk 00:00:27]} {[%emt 00:00:08]} b4 {[%clk
00:02:24]} {[%emt 00:00:16]} 34. Rd1 {[%clk 00:00:30]} {[%emt 00:00:03]} b3
{[%clk 00:02:01]} {[%emt 00:00:27]} 35. Rad2 {[%clk 00:00:22]} {[%emt
00:00:13]} Nc2 {[%clk 00:01:48]} {[%emt 00:00:18]} 36. Nxc2 {[%clk 00:00:24]}
{[%emt 00:00:04]} bxc2 {[%clk 00:01:46]} {[%emt 00:00:06]} 37. Bxg7+ {[%clk
00:00:27]} {[%emt 00:00:02]} Kxg7 {[%clk 00:01:49]} {[%emt 00:00:02]} 38. Rc1
{[%clk 00:00:31]} {[%emt 00:00:01]} Rfc7 {[%clk 00:01:52]} {[%emt 00:00:02]} 39.
Kf1 {[%clk 00:00:35]} {[%emt 00:00:02]} R5c6 {[%clk 00:01:44]} {[%emt
00:00:16]} 40. Ke2 {[%clk 00:00:38]} {[%emt 00:00:02]} Kf6 {[%clk 00:01:34]}
{[%emt 00:00:13]} 41. g3 {[%clk 00:00:27]} {[%emt 00:00:18]} Kf5 {[%clk
00:01:34]} {[%emt 00:00:03]} 42. Kf3 {[%clk 00:00:29]} {[%emt 00:00:06]} Rc3+
{[%clk 00:01:33]} {[%emt 00:00:05]} 43. Ke2 {[%clk 00:00:32]} {[%emt 00:00:05]}
R7c6 {[%clk 00:01:24]} {[%emt 00:00:13]} 44. Rd5+ {[%clk 00:00:34]} {[%emt
00:00:03]} Kf6 {[%clk 00:01:26]} {[%emt 00:00:14]} 45. Rd2 {[%clk 00:00:38]}
Ke6 {[%clk 00:01:29]} {[%emt 00:00:02]} 46. Ke1 {[%clk 00:00:40]} {[%emt
00:00:14]} h5 {[%clk 00:01:29]} {[%emt 00:00:03]} 47. Ke2 {[%clk 00:00:44]} Ke5
{[%clk 00:01:28]} {[%emt 00:00:11]} 48. Ke1 {[%clk 00:00:15]} {[%emt 00:00:54]}
g4 {[%clk 00:01:30]} {[%emt 00:00:14]} 49. h4 {[%clk 00:00:18]} Ke4 {[%clk
00:01:24]} {[%emt 00:00:14]} 50. Ke2 {[%clk 00:00:22]} R6c5 {[%clk 00:01:21]}
{[%emt 00:00:04]} 51. Rd7 {[%clk 00:00:25]} {[%emt 00:00:07]} Rc7 {[%clk
00:00:59]} {[%emt 00:00:16]} 52. Rd8 {[%clk 00:00:28]} R3c6 {[%clk 00:01:00]}
{[%emt 00:00:01]} 53. Rd2 {[%clk 00:00:28]} {[%emt 00:00:11]} Ke5 {[%clk
00:00:50]} {[%emt 00:00:17]} 54. Ke3 {[%clk 00:00:32]} {[%emt 00:00:05]} Rc3+
{[%clk 00:00:46]} {[%emt 00:00:11]} 55. Ke2 {[%clk 00:00:36]} R7c4 {[%clk
00:00:50]} 56. Rd8 {[%clk 00:00:38]} {[%emt 00:00:02]} Rc6 {[%clk 00:00:43]}
{[%emt 00:00:11]} 57. Rd2 {[%clk 00:00:41]} {[%emt 00:00:09]} Rxa6 {[%clk
00:00:44]} {[%emt 00:00:01]} 58. Rdxc2 {[%clk 00:00:44]} {[%emt 00:00:01]}
Rxc2+ {[%clk 00:00:47]} 59. Rxc2 {[%clk 00:00:48]} Kd4 {[%clk 00:00:50]} {[%emt
00:00:01]} 60. f3 {[%clk 00:00:16]} {[%emt 00:00:24]} Re6+ {[%clk 00:00:47]}
{[%emt 00:00:05]} 61. Kf2 {[%clk 00:00:20]} Kd3 {[%clk 00:00:51]} 62. Ra2
{[%clk 00:00:24]} gxf3 {[%clk 00:00:50]} {[%emt 00:00:01]} 63. Rxa7 {[%clk
00:00:21]} {[%emt 00:00:02]} Ke4 {[%clk 00:00:39]} {[%emt 00:00:07]} 64. Ra4+
{[%clk 00:00:25]} Kf5 {[%clk 00:00:39]} 65. Kxf3 {[%clk 00:00:27]} Rb6 {[%clk
00:00:43]} 66. Ra5+ {[%clk 00:00:31]} Kg6 {[%clk 00:00:47]} 67. Ra4 {[%clk
00:00:29]} Kf6 {[%clk 00:00:50]} 68. Kf4 {[%clk 00:00:33]} Rc6 {[%clk
00:00:54]} 69. Ra5 {[%clk 00:00:27]} {[%emt 00:00:10]} Rc4+ {[%clk 00:00:50]}
1/2-1/2

[Event "The Kvibergspelen 2023"]
[Site "Kviberg Park Hotel & Conference, Krutvagen 2, Gothenburg, Sweden"]
[Date "2023.09.15"]
[Round "3.8"]
[White "Jogstad, Daniel"]
[Black "Thorn, Eric"]
[Result "0-1"]
[TimeControl "15 minutes + 5 seconds per move from move one (Round 1 - 4) / 90 minutes + 30 seconds per move from move one (Round 5 - 8)"]
[WhiteTitle "CM"]
[BlackTitle "FM"]
[WhiteFideId "1718959"]
[BlackFideId "1710729"]
[WhiteElo "2137"]
[BlackElo "2390"]

1. e4 {[%clk 00:15:06]} {[%emt 00:00:04]} e5 {[%clk 00:12:32]} {[%emt
00:02:38]} 2. Nf3 {[%clk 00:15:08]} {[%emt 00:00:02]} Nc6 {[%clk 00:12:35]}
{[%emt 00:00:02]} 3. Bc4 {[%clk 00:15:11]} {[%emt 00:00:02]} Nf6 {[%clk
00:12:39]} {[%emt 00:00:03]} 4. d3 {[%clk 00:15:15]} Be7 {[%clk 00:12:42]}
{[%emt 00:00:02]} 5. O-O {[%clk 00:15:14]} {[%emt 00:00:05]} O-O {[%clk
00:12:41]} {[%emt 00:00:06]} 6. Re1 {[%clk 00:15:17]} {[%emt 00:00:02]} d6
{[%clk 00:12:45]} {[%emt 00:00:01]} 7. a4 {[%clk 00:15:21]} {[%emt 00:00:02]}
Kh8 {[%clk 00:12:47]} {[%emt 00:00:03]} 8. a5 {[%clk 00:15:25]} {[%emt
00:00:01]} a6 {[%clk 00:12:47]} {[%emt 00:00:05]} 9. h3 {[%clk 00:15:14]}
{[%emt 00:00:16]} h6 {[%clk 00:12:46]} {[%emt 00:00:05]} 10. c3 {[%clk
00:12:49]} {[%emt 00:02:30]} Nh7 {[%clk 00:12:34]} {[%emt 00:00:17]} 11. d4
{[%clk 00:12:44]} {[%emt 00:00:11]} Bf6 {[%clk 00:10:41]} {[%emt 00:01:58]} 12.
dxe5 {[%clk 00:12:05]} {[%emt 00:00:44]} dxe5 {[%clk 00:09:48]} {[%emt
00:00:57]} 13. Nbd2 {[%clk 00:11:47]} {[%emt 00:00:23]} Qe7 {[%clk 00:07:50]}
{[%emt 00:02:04]} 14. Nf1 {[%clk 00:11:38]} {[%emt 00:00:14]} Be6 {[%clk
00:06:44]} {[%emt 00:01:12]} 15. Qb3 {[%clk 00:11:40]} {[%emt 00:00:02]} Bxc4
{[%clk 00:05:45]} {[%emt 00:01:04]} 16. Qxc4 {[%clk 00:11:43]} {[%emt
00:00:01]} Ng5 {[%clk 00:05:32]} {[%emt 00:00:19]} 17. Bxg5 {[%clk 00:10:27]}
{[%emt 00:01:22]} Bxg5 {[%clk 00:05:34]} {[%emt 00:00:02]} 18. Nxg5 {[%clk
00:10:30]} {[%emt 00:00:02]} Qxg5 {[%clk 00:04:59]} {[%emt 00:00:40]} 19. Ne3
{[%clk 00:10:31]} {[%emt 00:00:04]} Nd8 {[%clk 00:03:47]} {[%emt 00:01:17]} 20.
Red1 {[%clk 00:04:24]} {[%emt 00:06:12]} Ne6 {[%clk 00:03:32]} {[%emt
00:00:19]} 21. Rd7 {[%clk 00:04:28]} {[%emt 00:00:01]} Nf4 {[%clk 00:02:30]}
{[%emt 00:01:08]} 22. Kf1 {[%clk 00:04:32]} {[%emt 00:00:01]} Rad8 {[%clk
00:01:19]} {[%emt 00:01:15]} 23. Rad1 {[%clk 00:04:35]} {[%emt 00:00:02]} c6
{[%clk 00:01:03]} {[%emt 00:00:22]} 24. Qb4 {[%clk 00:03:40]} {[%emt 00:01:00]}
Kg8 {[%clk 00:00:36]} {[%emt 00:00:32]} 25. Qd6 {[%clk 00:01:39]} {[%emt
00:02:06]} Rde8 {[%clk 00:00:14]} {[%emt 00:00:28]} 26. Rxb7 {[%clk 00:00:56]}
{[%emt 00:00:47]} Re6 {[%clk 00:00:17]} {[%emt 00:00:02]} 27. Qc5 {[%clk
00:00:48]} {[%emt 00:00:12]} Rg6 {[%clk 00:00:16]} {[%emt 00:00:07]} 28. g3
{[%clk 00:00:12]} {[%emt 00:00:46]} Nxh3 {[%clk 00:00:19]} 29. Re7 {[%clk
00:00:07]} {[%emt 00:00:11]} Nxf2 {[%clk 00:00:17]} {[%emt 00:00:04]} 0-1

[Event "The Kvibergspelen 2023"]
[Site "Kviberg Park Hotel & Conference, Krutvagen 2, Gothenburg, Sweden"]
[Date "2023.09.15"]
[Round "3.9"]
[White "Olsson, William"]
[Black "Holm, Ragnar"]
[Result "0-1"]
[TimeControl "15 minutes + 5 seconds per move from move one (Round 1 - 4) / 90 minutes + 30 seconds per move from move one (Round 5 - 8)"]
[WhiteTitle "FM"]
[WhiteFideId "1741721"]
[BlackFideId "1505858"]
[WhiteElo "2376"]
[BlackElo "2128"]

1. c4 {[%clk 00:15:09]} {[%emt 00:08:37]} e6 {[%clk 00:13:48]} {[%emt
00:01:22]} 2. g3 {[%clk 00:15:12]} {[%emt 00:00:02]} d5 {[%clk 00:13:49]}
{[%emt 00:00:04]} 3. Bg2 {[%clk 00:15:16]} Nf6 {[%clk 00:13:45]} {[%emt
00:00:08]} 4. Nf3 {[%clk 00:15:20]} {[%emt 00:00:03]} Be7 {[%clk 00:13:39]}
{[%emt 00:00:11]} 5. O-O {[%clk 00:15:21]} {[%emt 00:00:03]} O-O {[%clk
00:13:40]} {[%emt 00:00:04]} 6. b3 {[%clk 00:15:24]} {[%emt 00:00:02]} c5
{[%clk 00:13:33]} {[%emt 00:00:12]} 7. cxd5 {[%clk 00:15:22]} {[%emt 00:00:06]}
Nxd5 {[%clk 00:13:29]} {[%emt 00:00:09]} 8. Bb2 {[%clk 00:15:26]} {[%emt
00:00:02]} Nc6 {[%clk 00:13:25]} {[%emt 00:00:08]} 9. Nc3 {[%clk 00:15:20]}
{[%emt 00:00:10]} Bf6 {[%clk 00:12:55]} {[%emt 00:00:35]} 10. Qc1 {[%clk
00:14:57]} {[%emt 00:00:26]} b6 {[%clk 00:12:34]} {[%emt 00:00:29]} 11. Nxd5
{[%clk 00:14:30]} {[%emt 00:00:32]} exd5 {[%clk 00:12:30]} {[%emt 00:00:09]} 12.
d4 {[%clk 00:14:18]} {[%emt 00:00:17]} Nxd4 {[%clk 00:11:32]} {[%emt 00:01:02]}
13. Nxd4 {[%clk 00:14:17]} {[%emt 00:00:06]} cxd4 {[%emt 00:01:13]} 14. Qd2
{[%clk 00:14:15]} {[%emt 00:00:06]} Re8 {[%clk 00:10:01]} {[%emt 00:00:30]} 15.
Rfe1 {[%clk 00:13:35]} {[%emt 00:00:42]} Ba6 {[%clk 00:09:04]} {[%emt
00:01:04]} 16. Bf1 {[%clk 00:11:27]} {[%emt 00:02:13]} d3 {[%clk 00:07:47]}
{[%emt 00:01:22]} 17. exd3 {[%clk 00:11:30]} {[%emt 00:00:02]} Qd6 {[%clk
00:07:03]} {[%emt 00:00:49]} 18. a4 {[%clk 00:10:12]} {[%emt 00:01:24]} Bb7
{[%clk 00:06:32]} {[%emt 00:00:35]} 19. Bg2 {[%clk 00:10:00]} {[%emt 00:00:17]}
a5 {[%clk 00:05:46]} {[%emt 00:00:51]} 20. Bxf6 {[%clk 00:09:51]} {[%emt
00:00:14]} Qxf6 {[%clk 00:05:46]} {[%emt 00:00:05]} 21. d4 {[%clk 00:09:55]}
{[%emt 00:00:01]} h5 {[%clk 00:05:28]} {[%emt 00:00:23]} 22. h4 {[%clk
00:09:53]} {[%emt 00:00:07]} Kf8 {[%clk 00:04:56]} {[%emt 00:00:37]} 23. b4
{[%clk 00:09:19]} {[%emt 00:00:40]} g6 {[%clk 00:04:52]} {[%emt 00:00:09]} 24.
f4 {[%clk 00:08:14]} {[%emt 00:01:09]} Qd6 {[%clk 00:04:37]} {[%emt 00:00:20]}
25. Rxe8+ {[%clk 00:07:37]} {[%emt 00:00:43]} Kxe8 {[%clk 00:04:24]} {[%emt
00:00:17]} 26. bxa5 {[%clk 00:07:33]} {[%emt 00:00:10]} Rxa5 {[%clk 00:04:11]}
{[%emt 00:00:18]} 27. Bf3 {[%clk 00:05:49]} {[%emt 00:01:48]} Bc6 {[%clk
00:03:42]} {[%emt 00:00:34]} 28. Bd1 {[%clk 00:05:49]} {[%emt 00:00:05]} Kf8
{[%clk 00:03:11]} {[%emt 00:00:36]} 29. Qc3 {[%clk 00:05:25]} {[%emt 00:00:28]}
Bd7 {[%clk 00:02:55]} {[%emt 00:00:22]} 30. Kf2 {[%clk 00:04:32]} {[%emt
00:00:57]} Ra8 {[%clk 00:02:44]} {[%emt 00:00:17]} 31. Qd2 {[%clk 00:02:48]}
{[%emt 00:01:50]} Qe6 {[%clk 00:02:07]} {[%emt 00:00:42]} 32. Qb4+ {[%clk
00:02:38]} {[%emt 00:00:14]} Kg7 {[%clk 00:02:10]} {[%emt 00:00:02]} 33. Bf3
{[%clk 00:02:30]} {[%emt 00:00:13]} Qc6 {[%clk 00:02:05]} {[%emt 00:00:10]} 34.
Bd1 {[%clk 00:00:54]} {[%emt 00:01:41]} Qe6 {[%clk 00:01:56]} {[%emt 00:00:14]}
35. Qb3 {[%clk 00:00:14]} {[%emt 00:00:45]} Re8 {[%clk 00:01:43]} {[%emt
00:00:18]} 36. Bf3 {[%clk 00:00:14]} {[%emt 00:00:04]} Bc6 {[%clk 00:01:17]}
{[%emt 00:00:34]} 37. Kg2 {[%clk 00:00:12]} {[%emt 00:00:07]} Qe3 {[%clk
00:01:12]} {[%emt 00:00:10]} 38. Qb2 {[%clk 00:00:07]} {[%emt 00:00:11]} Bd7
{[%clk 00:00:54]} {[%emt 00:00:25]} 39. Ra3 {[%clk 00:00:11]} {[%emt 00:00:01]}
Qe1 {[%clk 00:00:56]} {[%emt 00:00:13]} 40. Ra2 {[%clk 00:00:07]} {[%emt
00:00:18]} Bg4 {[%clk 00:00:52]} {[%emt 00:00:12]} 41. Bxd5 {[%clk 00:00:06]}
{[%emt 00:00:11]} Re2+ {[%clk 00:00:55]} {[%emt 00:00:02]} 42. Qxe2 {[%clk
00:00:09]} {[%emt 00:00:09]} Bxe2 {[%clk 00:00:59]} 43. Kh2 {[%clk 00:00:11]}
{[%emt 00:00:01]} Qf2+ {[%clk 00:01:00]} {[%emt 00:00:02]} 44. Bg2 {[%clk
00:00:14]} {[%emt 00:00:09]} Qe3 {[%clk 00:00:59]} {[%emt 00:00:02]} 45. d5
{[%clk 00:00:18]} Bg4 {[%clk 00:01:02]} {[%emt 00:00:01]} 46. Rb2 {[%clk
00:00:18]} {[%emt 00:00:16]} Qd4 {[%emt 00:00:26]} 47. Ra2 {[%clk 00:00:17]}
Bd7 {[%clk 00:01:02]} {[%emt 00:00:02]} 48. a5 {[%clk 00:00:16]} {[%emt
00:00:02]} bxa5 {[%clk 00:01:03]} {[%emt 00:00:09]} 49. Rxa5 {[%clk 00:00:20]}
Qd2 {[%clk 00:01:05]} 50. Ra3 {[%emt 00:00:16]} 0-1